[Event "Titled Tuesday Blitz January 18 2022"]
[White "Prraneeth Vuppala"]
[Black "Samadov, Read"]
[WhiteFideId "46622373"]
[BlackFideId "13417444"]
[WhiteElo "1759"]
[BlackElo "2084"]
[Result "0-1"]
[Round "02"]
[TimeControl "180+1"]
[Date "2022.01.18"]
[WhiteClock "0:00:04"]
[BlackClock "0:00:04"]

1. e4 {[%clk 0:03:00]}  c5 {[%clk 0:02:59]} 2. Nf3 {[%clk 0:03:00]}  d6 {[%clk 0:02:59]} 3. Bb5+ {[%clk 0:03:00]}  Nd7 {[%clk 0:02:57]} 4. a4 {[%clk 0:03:00]}  Nf6 {[%clk 0:02:55]} 5. Nc3 {[%clk 0:03:00]}  e6 {[%clk 0:02:48]} 6. d4 {[%clk 0:02:55]}  cxd4 {[%clk 0:02:47]} 7. Nxd4 {[%clk 0:02:52]}  Be7 {[%clk 0:02:45]} 8. O-O {[%clk 0:02:45]}  O-O {[%clk 0:02:45]} 9. Be3 {[%clk 0:02:37]}  a6 {[%clk 0:02:43]} 10. Bc4 {[%clk 0:02:27]}  Nc5 {[%clk 0:02:40]} 11. f3 {[%clk 0:02:21]}  Re8 {[%clk 0:02:09]} 12. Nb3 {[%clk 0:01:34]}  Nxb3 {[%clk 0:02:00]} 13. Bxb3 {[%clk 0:01:35]}  b6 {[%clk 0:01:57]} 14. Qd2 {[%clk 0:01:22]}  Bb7 {[%clk 0:01:53]} 15. Qf2 {[%clk 0:01:20]}  Nd7 {[%clk 0:01:49]} 16. Rad1 {[%clk 0:01:11]}  Qc7 {[%clk 0:01:49]} 17. Rd2 {[%clk 0:01:04]}  Nc5 {[%clk 0:01:48]} 18. Ba2 {[%clk 0:01:01]}  Bf6 {[%clk 0:01:46]} 19. Bd4 {[%clk 0:00:59]}  Be5 {[%clk 0:01:28]} 20. Rfd1 {[%clk 0:00:48]}  Rad8 {[%clk 0:01:20]} 21. b4 {[%clk 0:00:42]}  Nd7 {[%clk 0:01:18]} 22. Ne2 {[%clk 0:00:42]}  Bxd4 {[%clk 0:01:08]} 23. Nxd4 {[%clk 0:00:42]}  Ne5 {[%clk 0:01:07]} 24. h3 {[%clk 0:00:29]}  Nc4 {[%clk 0:01:03]} 25. Re2 {[%clk 0:00:20]}  d5 {[%clk 0:01:01]} 26. Bxc4 {[%clk 0:00:17]}  Qxc4 {[%clk 0:01:00]} 27. e5 {[%clk 0:00:17]}  Qxb4 {[%clk 0:00:58]} 28. f4 {[%clk 0:00:18]}  Rc8 {[%clk 0:00:57]} 29. f5 {[%clk 0:00:17]}  Rc4 {[%clk 0:00:24]} 30. Rf1 {[%clk 0:00:12]}  Rxd4 {[%clk 0:00:10]} 31. fxe6 {[%clk 0:00:11]}  Rf8 {[%clk 0:00:10]} 32. exf7+ {[%clk 0:00:11]}  Kh8 {[%clk 0:00:10]} 33. e6 {[%clk 0:00:12]}  Re4 {[%clk 0:00:10]} 34. c3 {[%clk 0:00:11]}  Qe7 {[%clk 0:00:09]} 35. Rxe4 {[%clk 0:00:10]}  dxe4 {[%clk 0:00:10]} 36. Qxb6 {[%clk 0:00:10]}  Bd5 {[%clk 0:00:10]} 37. Qd4 {[%clk 0:00:08]}  Bxe6 {[%clk 0:00:09]} 38. Qxe4 {[%clk 0:00:09]}  Qc5+ {[%clk 0:00:06]} 39. Kh1 {[%clk 0:00:09]}  Bxf7 {[%clk 0:00:05]} 40. Qb7 {[%clk 0:00:07]}  Bg6 {[%clk 0:00:05]} 41. Rxf8+ {[%clk 0:00:07]}  Qxf8 {[%clk 0:00:06]} 42. Qxa6 {[%clk 0:00:07]}  Be4 {[%clk 0:00:05]} 43. Qe2 {[%clk 0:00:08]}  Qf4 {[%clk 0:00:04]} 44. a5 {[%clk 0:00:08]}  h6 {[%clk 0:00:04]} 45. a6 {[%clk 0:00:08]}  Qc1+ {[%clk 0:00:04]} 46. Kh2 {[%clk 0:00:08]}  Qf4+ {[%clk 0:00:04]} 47. g3 {[%clk 0:00:08]}  Qf5 {[%clk 0:00:04]} 48. a7 {[%clk 0:00:08]}  Kh7 {[%clk 0:00:04]} 49. c4 {[%clk 0:00:07]}  Ba8 {[%clk 0:00:04]} 50. g4 {[%clk 0:00:07]}  Qf4+ {[%clk 0:00:04]} 51. Kg1 {[%clk 0:00:07]}  Qg3+ {[%clk 0:00:04]} 52. Kf1 {[%clk 0:00:06]}  Qxh3+ {[%clk 0:00:05]} 53. Ke1 {[%clk 0:00:07]}  Qc3+ {[%clk 0:00:05]} 54. Kf1 {[%clk 0:00:06]}  Qa1+ {[%clk 0:00:04]} 55. Kf2 {[%clk 0:00:06]}  Qxa7+ {[%clk 0:00:05]} 56. Kg3 {[%clk 0:00:05]}  Qc7+ {[%clk 0:00:04]} 57. Kh3 {[%clk 0:00:05]}  Qf7 {[%clk 0:00:04]} 58. Qd3+ {[%clk 0:00:04]}  Qg6 {[%clk 0:00:04]} 0-1


[Site "https://www.chess.com"]

[Event "Titled Tuesday Blitz January 18 2022"]
[White "Rasulov, Vugar"]
[Black "Popadic, Dragan"]
[WhiteFideId "13402390"]
[BlackFideId "913650"]
[WhiteElo "2560"]
[BlackElo "2199"]
[Result "1-0"]
[Round "02"]
[TimeControl "180+1"]
[Date "2022.01.18"]
[WhiteClock "0:02:02"]
[BlackClock "0:00:09"]

1. d4 {[%clk 0:03:00]}  Nf6 {[%clk 0:02:59]} 2. Bg5 {[%clk 0:03:01]}  d5 {[%clk 0:02:56]} 3. Nd2 {[%clk 0:03:01]}  c5 {[%clk 0:02:53]} 4. e3 {[%clk 0:03:01]}  cxd4 {[%clk 0:02:47]} 5. exd4 {[%clk 0:03:02]}  Nc6 {[%clk 0:02:45]} 6. c3 {[%clk 0:03:02]}  Qb6 {[%clk 0:02:36]} 7. Qb3 {[%clk 0:03:01]}  Qxb3 {[%clk 0:02:32]} 8. Nxb3 {[%clk 0:03:02]}  e6 {[%clk 0:02:29]} 9. Nf3 {[%clk 0:03:02]}  Bd7 {[%clk 0:02:29]} 10. Bd3 {[%clk 0:03:02]}  Be7 {[%clk 0:02:29]} 11. O-O {[%clk 0:03:02]}  h6 {[%clk 0:02:29]} 12. Bf4 {[%clk 0:03:02]}  O-O {[%clk 0:02:28]} 13. Rfe1 {[%clk 0:03:02]}  a6 {[%clk 0:02:27]} 14. a4 {[%clk 0:03:01]}  Rac8 {[%clk 0:02:23]} 15. a5 {[%clk 0:03:00]}  Ne8 {[%clk 0:02:05]} 16. Nc5 {[%clk 0:02:57]}  Bxc5 {[%clk 0:02:03]} 17. dxc5 {[%clk 0:02:58]}  f6 {[%clk 0:01:57]} 18. Be3 {[%clk 0:02:53]}  e5 {[%clk 0:01:54]} 19. Bg6 {[%clk 0:02:53]}  Nc7 {[%clk 0:01:53]} 20. b4 {[%clk 0:02:50]}  Ne7 {[%clk 0:01:31]} 21. Bc2 {[%clk 0:02:49]}  Nb5 {[%clk 0:01:29]} 22. Bd2 {[%clk 0:02:49]}  Be6 {[%clk 0:01:28]} 23. Ba4 {[%clk 0:02:47]}  Bd7 {[%clk 0:01:22]} 24. Red1 {[%clk 0:02:44]}  Rfd8 {[%clk 0:01:19]} 25. Be1 {[%clk 0:02:43]}  Bc6 {[%clk 0:01:19]} 26. Bb3 {[%clk 0:02:42]}  Kh7 {[%clk 0:01:14]} 27. c4 {[%clk 0:02:42]}  dxc4 {[%clk 0:01:13]} 28. Bxc4 {[%clk 0:02:43]}  Bxf3 {[%clk 0:01:08]} 29. gxf3 {[%clk 0:02:43]}  Nc6 {[%clk 0:01:09]} 30. Kg2 {[%clk 0:02:38]}  g5 {[%clk 0:01:07]} 31. Rd3 {[%clk 0:02:31]}  Ncd4 {[%clk 0:01:06]} 32. Rad1 {[%clk 0:02:30]}  Kg6 {[%clk 0:01:01]} 33. Bxb5 {[%clk 0:02:26]}  axb5 {[%clk 0:00:59]} 34. Bc3 {[%clk 0:02:27]}  Nc6 {[%clk 0:00:58]} 35. Rd7 {[%clk 0:02:23]}  Rb8 {[%clk 0:00:44]} 36. R1d6 {[%clk 0:02:22]}  Kf5 {[%clk 0:00:40]} 37. Kf1 {[%clk 0:02:20]}  h5 {[%clk 0:00:39]} 38. Ke2 {[%clk 0:02:20]}  h4 {[%clk 0:00:37]} 39. h3 {[%clk 0:02:20]}  Kg6 {[%clk 0:00:28]} 40. Ke3 {[%clk 0:02:20]}  Kf5 {[%clk 0:00:27]} 41. Rd1 {[%clk 0:02:12]}  Ke6 {[%clk 0:00:25]} 42. R7d6+ {[%clk 0:02:10]}  Ke7 {[%clk 0:00:22]} 43. Ke4 {[%clk 0:02:10]}  Rxd6 {[%clk 0:00:19]} 44. Rxd6 {[%clk 0:02:11]}  Rd8 {[%clk 0:00:19]} 45. Kd5 {[%clk 0:02:04]}  Rxd6+ {[%clk 0:00:16]} 46. cxd6+ {[%clk 0:02:05]}  Kd7 {[%clk 0:00:16]} 47. Kc5 {[%clk 0:02:06]}  Nd8 {[%clk 0:00:14]} 48. Kxb5 {[%clk 0:02:04]}  Kxd6 {[%clk 0:00:13]} 49. Kb6 {[%clk 0:02:05]}  Kd7 {[%clk 0:00:14]} 50. b5 {[%clk 0:02:05]}  Kc8 {[%clk 0:00:14]} 51. Kc5 {[%clk 0:02:03]}  Kc7 {[%clk 0:00:13]} 52. Kd5 {[%clk 0:02:03]}  Kd7 {[%clk 0:00:12]} 53. a6 {[%clk 0:02:01]}  bxa6 {[%clk 0:00:11]} 54. bxa6 {[%clk 0:02:02]}  Kc7 {[%clk 0:00:09]} 55. Ba5+ {[%clk 0:02:02]} 1-0


[Site "https://www.chess.com"]

[Event "Titled Tuesday Blitz January 18 2022"]
[White "Remizov, Yaroslav"]
[Black "Skatchkov, Valery"]
[WhiteFideId "34134015"]
[BlackFideId "24195812"]
[WhiteElo "2360"]
[BlackElo "2196"]
[Result "0-1"]
[Round "02"]
[TimeControl "180+1"]
[Date "2022.01.18"]
[WhiteClock "0:00:46"]
[BlackClock "0:01:01"]

1. b3 {[%clk 0:03:00]}  d5 {[%clk 0:02:54]} 2. e3 {[%clk 0:03:01]}  c6 {[%clk 0:02:54]} 3. a3 {[%clk 0:03:01]}  Nf6 {[%clk 0:02:54]} 4. Ra2 {[%clk 0:03:00]}  Bf5 {[%clk 0:02:54]} 5. d3 {[%clk 0:03:00]}  e6 {[%clk 0:02:54]} 6. c3 {[%clk 0:03:00]}  Nbd7 {[%clk 0:02:54]} 7. f3 {[%clk 0:03:00]}  Bd6 {[%clk 0:02:38]} 8. g4 {[%clk 0:02:59]}  Bg6 {[%clk 0:02:35]} 9. Rg2 {[%clk 0:02:56]}  h6 {[%clk 0:02:10]} 10. h4 {[%clk 0:02:55]}  Qc7 {[%clk 0:02:07]} 11. Ne2 {[%clk 0:02:48]}  e5 {[%clk 0:01:52]} 12. e4 {[%clk 0:02:44]}  O-O-O {[%clk 0:01:48]} 13. b4 {[%clk 0:02:34]}  c5 {[%clk 0:01:30]} 14. g5 {[%clk 0:02:20]}  Nh5 {[%clk 0:01:29]} 15. exd5 {[%clk 0:02:11]}  Nf4 {[%clk 0:01:22]} 16. Bxf4 {[%clk 0:01:58]}  exf4 {[%clk 0:01:23]} 17. Kf2 {[%clk 0:01:15]}  hxg5 {[%clk 0:01:15]} 18. Rxg5 {[%clk 0:01:04]}  Be7 {[%clk 0:01:14]} 19. Rg4 {[%clk 0:00:54]}  Ne5 {[%clk 0:01:14]} 20. Bh3 {[%clk 0:00:52]}  Nxg4+ {[%clk 0:01:07]} 21. Bxg4+ {[%clk 0:00:45]}  f5 {[%clk 0:01:07]} 22. h5 {[%clk 0:00:46]}  fxg4 {[%clk 0:01:05]} 23. hxg6 {[%clk 0:00:46]}  g3+ {[%clk 0:01:02]} 24. Kg2 {[%clk 0:00:46]}  Qe5 {[%clk 0:01:01]} 0-1


[Site "https://www.chess.com"]

[Event "Titled Tuesday Blitz January 18 2022"]
[White "Ronka, Erik"]
[Black "Lovkov, Roman"]
[WhiteFideId "505080"]
[BlackFideId "4157389"]
[WhiteElo "2264"]
[BlackElo "2371"]
[Result "0-1"]
[Round "02"]
[TimeControl "180+1"]
[Date "2022.01.18"]
[WhiteClock "0:00:01"]
[BlackClock "0:00:10"]

1. d4 {[%clk 0:03:00]}  c5 {[%clk 0:02:58]} 2. d5 {[%clk 0:03:00]}  e5 {[%clk 0:02:58]} 3. Nc3 {[%clk 0:02:58]}  d6 {[%clk 0:02:59]} 4. e4 {[%clk 0:02:58]}  Be7 {[%clk 0:02:59]} 5. Nf3 {[%clk 0:02:57]}  Nf6 {[%clk 0:02:59]} 6. Be2 {[%clk 0:02:54]}  O-O {[%clk 0:02:59]} 7. O-O {[%clk 0:02:54]}  Ne8 {[%clk 0:02:59]} 8. b3 {[%clk 0:02:54]}  g6 {[%clk 0:02:58]} 9. a4 {[%clk 0:02:47]}  Ng7 {[%clk 0:02:58]} 10. Ba3 {[%clk 0:02:42]}  f5 {[%clk 0:02:57]} 11. Nd2 {[%clk 0:02:41]}  h5 {[%clk 0:02:55]} 12. b4 {[%clk 0:02:30]}  b6 {[%clk 0:02:47]} 13. a5 {[%clk 0:02:23]}  f4 {[%clk 0:02:44]} 14. axb6 {[%clk 0:02:05]}  axb6 {[%clk 0:02:45]} 15. bxc5 {[%clk 0:01:52]}  bxc5 {[%clk 0:02:46]} 16. Nc4 {[%clk 0:01:53]}  Nd7 {[%clk 0:02:42]} 17. Nb5 {[%clk 0:01:30]}  Nf6 {[%clk 0:02:41]} 18. f3 {[%clk 0:01:26]}  Rb8 {[%clk 0:02:30]} 19. Rb1 {[%clk 0:01:19]}  g5 {[%clk 0:02:28]} 20. Qd2 {[%clk 0:01:18]}  Ra8 {[%clk 0:02:15]} 21. Bxc5 {[%clk 0:01:05]}  dxc5 {[%clk 0:02:13]} 22. d6 {[%clk 0:01:06]}  Ra6 {[%clk 0:01:08]} 23. dxe7 {[%clk 0:01:01]}  Qxe7 {[%clk 0:01:09]} 24. Qc3 {[%clk 0:00:57]}  Re8 {[%clk 0:01:07]} 25. Rfd1 {[%clk 0:00:52]}  Rc6 {[%clk 0:00:35]} 26. Nbd6 {[%clk 0:00:32]}  Rd8 {[%clk 0:00:35]} 27. Nxc8 {[%clk 0:00:23]}  Rcxc8 {[%clk 0:00:36]} 28. Qxe5 {[%clk 0:00:22]}  Qxe5 {[%clk 0:00:29]} 29. Nxe5 {[%clk 0:00:23]}  Rxd1+ {[%clk 0:00:20]} 30. Rxd1 {[%clk 0:00:22]}  Re8 {[%clk 0:00:18]} 31. Bc4+ {[%clk 0:00:20]}  Kh7 {[%clk 0:00:18]} 32. Nd3 {[%clk 0:00:19]}  g4 {[%clk 0:00:19]} 33. Kf2 {[%clk 0:00:16]}  gxf3 {[%clk 0:00:17]} 34. gxf3 {[%clk 0:00:15]}  Rd8 {[%clk 0:00:17]} 35. Rb1 {[%clk 0:00:15]}  Nfe8 {[%clk 0:00:17]} 36. e5 {[%clk 0:00:12]}  Rd4 {[%clk 0:00:14]} 37. Bf7 {[%clk 0:00:09]}  Nc7 {[%clk 0:00:14]} 38. Rb7 {[%clk 0:00:08]}  Nd5 {[%clk 0:00:12]} 39. Bxd5 {[%clk 0:00:07]}  Rxd5 {[%clk 0:00:13]} 40. Rc7 {[%clk 0:00:07]}  Rd4 {[%clk 0:00:12]} 41. Rxc5 {[%clk 0:00:07]}  Ne6 {[%clk 0:00:12]} 42. Rc6 {[%clk 0:00:07]}  Ng5 {[%clk 0:00:12]} 43. Rd6 {[%clk 0:00:07]}  Rc4 {[%clk 0:00:12]} 44. Ne1 {[%clk 0:00:06]}  Kg7 {[%clk 0:00:11]} 45. Rd3 {[%clk 0:00:07]}  Kg6 {[%clk 0:00:11]} 46. Rd2 {[%clk 0:00:07]}  Kf5 {[%clk 0:00:12]} 47. h4 {[%clk 0:00:07]}  Ne6 {[%clk 0:00:12]} 48. Nd3 {[%clk 0:00:08]}  Nd4 {[%clk 0:00:11]} 49. Nb2 {[%clk 0:00:08]}  Rc3 {[%clk 0:00:10]} 50. Nd1 {[%clk 0:00:07]}  Rxc2 {[%clk 0:00:10]} 51. Rxc2 {[%clk 0:00:07]}  Nxc2 {[%clk 0:00:10]} 52. Nb2 {[%clk 0:00:07]}  Kxe5 {[%clk 0:00:10]} 53. Nd3+ {[%clk 0:00:08]}  Kf5 {[%clk 0:00:11]} 54. Nc5 {[%clk 0:00:08]}  Ne3 {[%clk 0:00:11]} 55. Ne4 {[%clk 0:00:07]}  Ke5 {[%clk 0:00:12]} 56. Ng5 {[%clk 0:00:07]}  Nf5 {[%clk 0:00:12]} 57. Nf7+ {[%clk 0:00:04]}  Kf6 {[%clk 0:00:12]} 58. Nd8 {[%clk 0:00:04]}  Nxh4 {[%clk 0:00:12]} 59. Nc6 {[%clk 0:00:04]}  Nf5 {[%clk 0:00:12]} 60. Nb4 {[%clk 0:00:02]}  Nd4 {[%clk 0:00:10]} 61. Nd3 {[%clk 0:00:02]}  Kf5 {[%clk 0:00:11]} 62. Kg2 {[%clk 0:00:03]}  Ne6 {[%clk 0:00:10]} 63. Nf2 {[%clk 0:00:04]}  Ng5 {[%clk 0:00:11]} 64. Nd3 {[%clk 0:00:04]}  h4 {[%clk 0:00:11]} 65. Nf2 {[%clk 0:00:04]}  Nf7 {[%clk 0:00:10]} 66. Nh3 {[%clk 0:00:04]}  Ne5 {[%clk 0:00:10]} 67. Nf2 {[%clk 0:00:04]}  Nc4 {[%clk 0:00:10]} 68. Ne4 {[%clk 0:00:04]}  Ne5 {[%clk 0:00:09]} 69. Nf2 {[%clk 0:00:04]}  Ke6 {[%clk 0:00:10]} 70. Ne4 {[%clk 0:00:04]}  Kd5 {[%clk 0:00:10]} 71. Nf6+ {[%clk 0:00:04]}  Kd4 {[%clk 0:00:10]} 72. Nh5 {[%clk 0:00:04]}  Ke3 {[%clk 0:00:11]} 73. Kh3 {[%clk 0:00:03]}  Nxf3 {[%clk 0:00:11]} 74. Nf6 {[%clk 0:00:02]}  Ne5 {[%clk 0:00:07]} 75. Kxh4 {[%clk 0:00:01]}  f3 {[%clk 0:00:07]} 76. Nh5 {[%clk 0:00:01]}  f2 {[%clk 0:00:07]} 77. Ng3 {[%clk 0:00:02]}  Kf3 {[%clk 0:00:07]} 78. Kh3 {[%clk 0:00:02]}  Nc4 {[%clk 0:00:07]} 79. Nf1 {[%clk 0:00:02]}  Ne3 {[%clk 0:00:07]} 80. Nh2+ {[%clk 0:00:03]}  Ke2 {[%clk 0:00:08]} 81. Kg3 {[%clk 0:00:03]}  Nf1+ {[%clk 0:00:08]} 82. Nxf1 {[%clk 0:00:01]}  Kxf1 {[%clk 0:00:09]} 83. Kf3 {[%clk 0:00:01]}  Ke1 {[%clk 0:00:10]} 0-1


[Site "https://www.chess.com"]

[Event "Titled Tuesday Blitz January 18 2022"]
[White "Rustemov, Alexander"]
[Black "Do Valle Cardoso, Lucas"]
[WhiteFideId "4119002"]
[BlackFideId "2163144"]
[WhiteElo "2886"]
[BlackElo "2357"]
[Result "1-0"]
[Round "02"]
[TimeControl "180+1"]
[Date "2022.01.18"]
[WhiteClock "0:00:21"]
[BlackClock "0:00:11"]

1. d4 {[%clk 0:03:00]}  d5 {[%clk 0:02:59]} 2. Nf3 {[%clk 0:03:00]}  Nf6 {[%clk 0:02:59]} 3. c4 {[%clk 0:02:56]}  dxc4 {[%clk 0:03:00]} 4. Qa4+ {[%clk 0:02:53]}  Nbd7 {[%clk 0:02:59]} 5. Qxc4 {[%clk 0:02:52]}  a6 {[%clk 0:02:59]} 6. Bf4 {[%clk 0:02:50]}  c6 {[%clk 0:02:46]} 7. Nbd2 {[%clk 0:02:36]}  e6 {[%clk 0:02:42]} 8. e3 {[%clk 0:02:33]}  c5 {[%clk 0:02:40]} 9. dxc5 {[%clk 0:02:19]}  Bxc5 {[%clk 0:02:41]} 10. Nb3 {[%clk 0:02:16]}  b5 {[%clk 0:02:40]} 11. Qc3 {[%clk 0:01:59]}  Bb6 {[%clk 0:02:19]} 12. Rc1 {[%clk 0:01:52]}  O-O {[%clk 0:02:15]} 13. Bc7 {[%clk 0:01:49]}  Qe7 {[%clk 0:02:01]} 14. Bxb6 {[%clk 0:01:47]}  Nxb6 {[%clk 0:02:02]} 15. Qc5 {[%clk 0:01:44]}  Qxc5 {[%clk 0:01:58]} 16. Nxc5 {[%clk 0:01:45]}  Ra7 {[%clk 0:01:44]} 17. Bd3 {[%clk 0:01:44]}  Rd8 {[%clk 0:01:41]} 18. Ke2 {[%clk 0:01:44]}  Rc7 {[%clk 0:01:34]} 19. Rhd1 {[%clk 0:01:37]}  Kf8 {[%clk 0:01:32]} 20. b3 {[%clk 0:01:29]}  h6 {[%clk 0:01:30]} 21. a4 {[%clk 0:01:26]}  bxa4 {[%clk 0:01:27]} 22. Nxa4 {[%clk 0:01:26]}  Rxc1 {[%clk 0:01:25]} 23. Rxc1 {[%clk 0:01:27]}  Nxa4 {[%clk 0:01:23]} 24. bxa4 {[%clk 0:01:28]}  Bd7 {[%clk 0:01:07]} 25. a5 {[%clk 0:01:26]}  Nd5 {[%clk 0:01:06]} 26. Ne5 {[%clk 0:01:22]}  Be8 {[%clk 0:00:53]} 27. f4 {[%clk 0:01:04]}  f6 {[%clk 0:00:52]} 28. Nf3 {[%clk 0:00:57]}  Rb8 {[%clk 0:00:49]} 29. Kd2 {[%clk 0:00:49]}  Rb2+ {[%clk 0:00:43]} 30. Rc2 {[%clk 0:00:49]}  Rb3 {[%clk 0:00:42]} 31. Nd4 {[%clk 0:00:47]}  Rxd3+ {[%clk 0:00:25]} 32. Kxd3 {[%clk 0:00:48]}  Nb4+ {[%clk 0:00:26]} 33. Kc3 {[%clk 0:00:47]}  Nxc2 {[%clk 0:00:27]} 34. Kxc2 {[%clk 0:00:35]}  Ke7 {[%clk 0:00:27]} 35. Kc3 {[%clk 0:00:35]}  Kd6 {[%clk 0:00:25]} 36. e4 {[%clk 0:00:31]}  Bd7 {[%clk 0:00:22]} 37. Kc4 {[%clk 0:00:25]}  e5 {[%clk 0:00:22]} 38. fxe5+ {[%clk 0:00:25]}  fxe5 {[%clk 0:00:23]} 39. Nf5+ {[%clk 0:00:22]}  Bxf5 {[%clk 0:00:15]} 40. exf5 {[%clk 0:00:23]}  Kc6 {[%clk 0:00:12]} 41. g4 {[%clk 0:00:21]}  e4 {[%clk 0:00:12]} 42. Kd4 {[%clk 0:00:21]}  Kb5 {[%clk 0:00:12]} 43. h4 {[%clk 0:00:21]}  Kxa5 {[%clk 0:00:13]} 44. g5 {[%clk 0:00:21]}  hxg5 {[%clk 0:00:13]} 45. hxg5 {[%clk 0:00:22]}  Kb5 {[%clk 0:00:09]} 46. f6 {[%clk 0:00:21]}  gxf6 {[%clk 0:00:09]} 47. gxf6 {[%clk 0:00:20]}  a5 {[%clk 0:00:10]} 48. f7 {[%clk 0:00:20]}  a4 {[%clk 0:00:11]} 49. f8=Q {[%clk 0:00:21]} 1-0


[Site "https://www.chess.com"]

[Event "Titled Tuesday Blitz January 18 2022"]
[White "Sarana, Alexey"]
[Black "Sorensen, Hampus"]
[WhiteFideId "24133795"]
[BlackFideId "8703884"]
[WhiteElo "3116"]
[BlackElo "2645"]
[Result "1-0"]
[Round "02"]
[TimeControl "180+1"]
[Date "2022.01.18"]
[WhiteClock "0:02:02"]
[BlackClock "0:00:25"]

1. d4 {[%clk 0:03:00]}  d5 {[%clk 0:02:55]} 2. c4 {[%clk 0:02:59]}  c6 {[%clk 0:02:55]} 3. Nf3 {[%clk 0:02:59]}  Nf6 {[%clk 0:02:54]} 4. Nc3 {[%clk 0:02:59]}  e6 {[%clk 0:02:54]} 5. Bg5 {[%clk 0:02:59]}  h6 {[%clk 0:02:54]} 6. Bh4 {[%clk 0:02:59]}  g5 {[%clk 0:02:54]} 7. Bg3 {[%clk 0:02:59]}  dxc4 {[%clk 0:02:55]} 8. e4 {[%clk 0:02:59]}  b5 {[%clk 0:02:55]} 9. h4 {[%clk 0:03:00]}  g4 {[%clk 0:02:52]} 10. Ne5 {[%clk 0:03:00]}  Nbd7 {[%clk 0:02:44]} 11. Nxc6 {[%clk 0:02:59]}  Qb6 {[%clk 0:02:44]} 12. d5 {[%clk 0:03:00]}  Bb7 {[%clk 0:02:15]} 13. a4 {[%clk 0:02:59]}  b4 {[%clk 0:01:55]} 14. Nb5 {[%clk 0:02:57]}  Rc8 {[%clk 0:01:45]} 15. Nbxa7 {[%clk 0:02:23]}  Ra8 {[%clk 0:01:23]} 16. Nb5 {[%clk 0:02:21]}  Rc8 {[%clk 0:01:23]} 17. Bxc4 {[%clk 0:02:18]}  Bxc6 {[%clk 0:01:14]} 18. dxc6 {[%clk 0:02:16]}  Rxc6 {[%clk 0:00:53]} 19. Bd3 {[%clk 0:02:16]}  Bc5 {[%clk 0:00:39]} 20. O-O {[%clk 0:02:15]}  h5 {[%clk 0:00:37]} 21. a5 {[%clk 0:02:13]}  Qb7 {[%clk 0:00:34]} 22. a6 {[%clk 0:02:12]}  Qa8 {[%clk 0:00:33]} 23. Nc7+ {[%clk 0:02:04]}  Rxc7 {[%clk 0:00:32]} 24. Bxc7 {[%clk 0:02:05]}  Nxe4 {[%clk 0:00:32]} 25. Bxe4 {[%clk 0:02:02]}  Qxe4 {[%clk 0:00:31]} 26. a7 {[%clk 0:02:02]}  O-O {[%clk 0:00:28]} 27. Bd6 {[%clk 0:02:03]}  Bxd6 {[%clk 0:00:27]} 28. Qxd6 {[%clk 0:02:04]}  Nf6 {[%clk 0:00:25]} 29. Qxf8+ {[%clk 0:02:02]} 1-0


[Site "https://www.chess.com"]

[Event "Titled Tuesday Blitz January 18 2022"]
[White "Sargsyan, Anna M."]
[Black "Nyzhnyk, Illya"]
[WhiteFideId "13308130"]
[BlackFideId "14118084"]
[WhiteElo "2612"]
[BlackElo "2943"]
[Result "0-1"]
[Round "02"]
[TimeControl "180+1"]
[Date "2022.01.18"]
[WhiteClock "0:00:17"]
[BlackClock "0:01:14"]

1. d4 {[%clk 0:03:00]}  d5 {[%clk 0:02:59]} 2. c4 {[%clk 0:02:59]}  dxc4 {[%clk 0:03:00]} 3. Nf3 {[%clk 0:02:59]}  Nf6 {[%clk 0:02:59]} 4. e3 {[%clk 0:02:59]}  e6 {[%clk 0:03:00]} 5. Bxc4 {[%clk 0:03:00]}  a6 {[%clk 0:03:00]} 6. O-O {[%clk 0:03:00]}  Nbd7 {[%clk 0:03:01]} 7. Qe2 {[%clk 0:02:59]}  c5 {[%clk 0:03:00]} 8. Rd1 {[%clk 0:02:58]}  cxd4 {[%clk 0:02:59]} 9. Nxd4 {[%clk 0:02:58]}  Qc7 {[%clk 0:02:57]} 10. Nd2 {[%clk 0:02:51]}  b5 {[%clk 0:02:55]} 11. Bb3 {[%clk 0:02:42]}  Nc5 {[%clk 0:02:55]} 12. Bc2 {[%clk 0:02:41]}  Bb7 {[%clk 0:02:54]} 13. N2f3 {[%clk 0:02:42]}  Bd6 {[%clk 0:02:51]} 14. Bd2 {[%clk 0:02:41]}  Nce4 {[%clk 0:02:40]} 15. Be1 {[%clk 0:02:38]}  O-O {[%clk 0:02:39]} 16. Rac1 {[%clk 0:02:36]}  Qb6 {[%clk 0:02:27]} 17. h3 {[%clk 0:02:29]}  Rac8 {[%clk 0:02:26]} 18. Bb1 {[%clk 0:02:25]}  b4 {[%clk 0:02:24]} 19. Nd2 {[%clk 0:02:19]}  Nxd2 {[%clk 0:02:14]} 20. Qxd2 {[%clk 0:02:20]}  Be7 {[%clk 0:02:14]} 21. Rxc8 {[%clk 0:02:09]}  Rxc8 {[%clk 0:02:13]} 22. Rc1 {[%clk 0:02:10]}  Rxc1 {[%clk 0:02:05]} 23. Qxc1 {[%clk 0:02:11]}  a5 {[%clk 0:02:05]} 24. Bd3 {[%clk 0:02:02]}  g6 {[%clk 0:02:04]} 25. Qc2 {[%clk 0:01:50]}  Nd7 {[%clk 0:02:01]} 26. Bc4 {[%clk 0:01:42]}  Ne5 {[%clk 0:01:54]} 27. Bf1 {[%clk 0:01:38]}  Bd5 {[%clk 0:01:50]} 28. Qc8+ {[%clk 0:01:33]}  Kg7 {[%clk 0:01:50]} 29. b3 {[%clk 0:01:21]}  Bc5 {[%clk 0:01:44]} 30. Nc2 {[%clk 0:01:16]}  Be4 {[%clk 0:01:37]} 31. Na1 {[%clk 0:01:00]}  Qd6 {[%clk 0:01:29]} 32. Be2 {[%clk 0:00:53]}  Nd3 {[%clk 0:01:17]} 33. Bxd3 {[%clk 0:00:27]}  Bxd3 {[%clk 0:01:17]} 34. Qa8 {[%clk 0:00:26]}  Qe5 {[%clk 0:01:13]} 35. Qxa5 {[%clk 0:00:17]}  Qxa1 {[%clk 0:01:12]} 36. Qxc5 {[%clk 0:00:17]}  Qxe1+ {[%clk 0:01:13]} 37. Kh2 {[%clk 0:00:17]}  Qc3 {[%clk 0:01:14]} 0-1


[Site "https://www.chess.com"]